bitfinex/quotes_ETHUSD_20250414
["timestamp","ask_amount","ask_price","bid_price","bid_amount"]
[1744653754423,6.06038,1650.1,1649.7,6.06154]
[1744653754585,6.06148,1649.8,1649.5,5.848]
[1744653755010,6.06207,1649.6,1649.5,5.848]
[1744653755214,0.12300671,1649.7,1649.3,6.06302]
[1744653755402,6.18496574,1649.6,1649.2,11.9105]
[1744653755604,6.18496574,1649.6,1649.4,2.61]
[1744653755817,12.24730574,1649.6,1649.4,2.61]
[1744653756013,6.06244,1649.5,1649.4,2.61]
[1744653756229,6.88304,1649.5,1649.4,2.61]
[1744653756420,0.12246474,1649.5,1649.4,2.61]
[1744653756909,6.87875,1649.7,1649.4,2.61]
[1744653757089,0.12246474,1649.5,1649.4,2.61]
[1744653757286,6.06148,1649.8,1649.4,9.42744]
[1744653757510,0.12955095,1649.5,1649.4,3.3648]
[1744653757717,6.06222,1649.6,1649.4,2.61]
[1744653758126,0.12926761,1649.5,1649.4,2.61]
[1744653758291,0.12926761,1649.5,1649.4,2.67062011]
[1744653758487,3.0,1649.9,1649.4,3.477313]
[1744653758686,0.12960762,1649.5,1649.4,3.477313]
[1744653758934,6.0619,1649.7,1649.4,9.540093]
[1744653759138,0.12960762,1649.5,1649.4,9.540093]
[1744653759334,12.12381,1649.7,1649.4,3.477313]
[1744653759496,0.12966428,1649.5,1649.4,2.61]
[1744653759685,12.1238,1649.7,1649.4,2.61]
[1744653759891,0.12989094,1649.5,1649.4,2.61]
[1744653760098,12.1238,1649.7,1649.4,2.61]
[1744653760297,0.12989094,1649.5,1649.4,2.61]
[1744653760535,6.06224,1649.6,1649.4,2.61]
[1744653760741,0.12989094,1649.5,1649.4,8.67276]
[1744653760896,12.12377,1649.7,1649.4,2.61]
[1744653761101,0.12989094,1649.5,1649.4,2.61]
[1744653761341,12.12377,1649.7,1649.4,2.61]
[1744653761637,0.12989094,1649.5,1649.4,8.67281]
[1744653761798,0.12989094,1649.5,1649.4,4.083582]
[1744653762003,6.06151,1649.8,1649.4,21.03047196]
[1744653762236,6.19198291,1649.7,1649.4,8.456]
[1744653762540,12.25387291,1649.7,1649.4,14.51878]
[1744653762710,6.19198291,1649.7,1649.4,8.456]
[1744653762911,6.0621,1649.6,1649.4,8.456]
[1744653763112,12.25417195,1649.6,1649.4,8.456]
[1744653763311,6.06244,1649.5,1649.4,8.456]
[1744653763538,0.12955095,1649.5,1649.4,8.456]
[1744653764640,6.19199095,1649.5,1649.4,8.456]
[1744653764845,0.12955095,1649.5,1649.4,8.456]
[1744653767866,0.12955095,1649.5,1649.4,19.6710714]
[1744653768018,0.12955095,1649.5,1649.4,16.577019]
[1744653768224,0.7953,1649.8,1649.5,6.06224]
[1744653768437,12.91846,1649.8,1649.5,8.67224]
[1744653768639,6.06176,1649.7,1649.5,2.61]
[1744653769671,6.06207,1649.6,1649.5,2.61]
[1744653770532,6.06176,1649.7,1649.5,2.61]
[1744653770972,6.06207,1649.6,1649.5,2.61]
[1744653771647,8.038353,1649.6,1649.5,2.61]
[1744653772958,6.06425,1649.1,1648.9,47.276]
[1744653773163,6.83615,1649.2,1648.8,5.845]
[1744653773470,6.82954,1648.9,1648.8,5.845]
[1744653773623,0.7649,1648.9,1648.5,14.83486456]
[1744653773827,6.06502,1648.8,1648.5,16.40109102]
[1744653774025,0.7649,1648.9,1648.7,6.06533]
[1744653774562,0.12437861,1648.8,1648.7,6.06533]
[1744653774742,12.1288,1649.0,1648.7,6.06525]
[1744653774943,0.12437861,1648.8,1648.7,10.06525]
[1744653775169,6.06366,1649.2,1648.8,6.06467]
[1744653775369,12.12742,1649.2,1648.8,6.06467]
[1744653775679,12.12836,1649.1,1648.7,18.121731]
[1744653775987,6.06362,1649.2,1648.8,10.06489]
[1744653776286,6.06354,1649.2,1648.9,6.06452]
[1744653776481,12.12726,1649.2,1648.9,6.06452]
[1744653776776,6.06354,1649.2,1648.9,6.12512926]
[1744653776969,12.95284,1649.3,1648.9,16.18963926]
[1744653777172,6.8894,1649.3,1649.0,6.06425]
[1744653777369,6.8894,1649.3,1649.0,6.06417]
[1744653777370,6.06323,1649.3,1649.0,6.06417]
[1744653777567,6.06323,1649.3,1648.9,10.06456]
[1744653777774,6.06323,1649.3,1649.0,6.06417]
[1744653778081,6.06323,1649.3,1649.0,4.0]
[1744653778273,6.06369,1649.2,1649.0,4.0]
[1744653779367,6.06391,1649.1,1649.0,4.0]
[1744653779552,12.12743,1649.2,1649.0,4.0]
[1744653780079,6.06391,1649.1,1649.0,4.0]
[1744653780255,7.35568,1649.1,1649.0,4.0]
[1744653780787,0.7901,1649.2,1649.0,4.0]
[1744653781100,12.91773,1649.2,1649.0,4.0]
[1744653781297,6.063,1649.4,1649.1,6.06389]
[1744653781610,6.06281,1649.4,1649.0,4.0]
[1744653781903,12.94256,1649.5,1649.2,6.06338]
[1744653782059,6.06286,1649.4,1649.2,4.0]
[1744653782258,0.8175,1649.5,1649.2,4.0]
[1744653782489,6.06296,1649.4,1649.2,4.0]
[1744653782709,6.06317,1649.3,1649.2,4.0]
[1744653784401,7.275783,1649.3,1649.2,4.0]
[1744653784566,8.093183,1649.3,1649.2,4.0]
[1744653785199,6.0637,1649.2,1648.8,17.9759]
[1744653785496,8.093273,1649.3,1649.0,4.0]
[1744653785497,8.093463,1649.3,1649.0,4.0]
[1744653785800,6.06285,1649.4,1649.1,6.12441727]
[1744653786002,0.8277,1649.5,1649.1,0.06063727]
[1744653786174,6.06245,1649.5,1649.2,6.06332]
[1744653786375,6.06245,1649.5,1649.2,10.06332]
[1744653786771,12.12445,1649.6,1649.3,6.06308]
[1744653786970,6.06142,1649.8,1649.3,0.7774]
[1744653787174,6.06191,1649.7,1649.4,6.06281]
[1744653787369,6.06245,1649.5,1649.3,0.7774]
[1744653787772,6.06317,1649.3,1649.2,4.0]
[1744653788068,6.86527,1649.3,1649.2,4.0]
[1744653788815,12.08806599,1649.3,1649.2,4.0]
[1744653788989,6.06516,1648.8,1648.6,5.842]
[1744653789606,6.06516,1648.8,1648.7,4.0]
[1744653790179,6.18545636,1648.8,1648.7,4.0]
[1744653790423,0.12029636,1648.8,1648.7,10.06538]
[1744653790780,6.06501,1648.8,1648.7,4.0]
[1744653790992,6.18530636,1648.8,1648.7,4.0]
[1744653791215,0.12029636,1648.8,1648.7,4.0]
[1744653791509,6.06501,1648.8,1648.7,4.0]
[1744653791680,0.12029636,1648.8,1648.7,4.0]
[1744653791881,6.06488,1648.9,1648.7,4.0]
[1744653792076,6.06481,1648.9,1648.7,4.0]
[1744653792306,0.12029636,1648.8,1648.7,4.0]
[1744653792513,6.18530636,1648.8,1648.7,4.0]
[1744653792715,7.410318,1648.8,1648.7,4.0]
[1744653793023,0.8048,1648.4,1647.9,0.7863]
[1744653793184,6.0677,1648.1,1647.7,11.9109]
[1744653793516,0.11642371,1648.0,1647.9,6.06817]
[1744653793715,0.8048,1648.4,1648.1,6.06738]
[1744653793917,12.93841,1648.4,1648.1,6.06756]
[1744653794214,6.06738,1648.2,1647.8,6.8245]
[1744653794414,6.06738,1648.2,1647.9,6.06814]
[1744653794595,6.06691,1648.3,1648.0,6.06794]
[1744653794997,8.165131,1648.4,1648.1,6.06731]
[1744653794998,6.87131,1648.4,1648.1,6.06731]
[1744653795218,12.13252,1648.5,1648.1,12.13472]
[1744653795415,12.13247,1648.5,1648.2,0.7971]
[1744653795617,0.7908,1648.6,1648.3,6.06657]
[1744653795618,6.85663,1648.6,1648.3,6.06657]
[1744653795787,0.7908,1648.6,1648.3,12.13331]
[1744653795984,6.85677,1648.6,1648.2,0.7971]
[1744653796185,6.85677,1648.6,1648.3,6.06671]
[1744653796384,6.06547,1648.7,1648.3,4.06066183]
[1744653796585,12.89438,1648.8,1648.4,12.13265]
[1744653796786,12.89433,1648.8,1648.4,12.19330711]
[1744653797589,12.89433,1648.8,1648.4,12.13265]
[1744653797919,6.06648,1648.4,1648.3,4.0]
[1744653798418,6.06648,1648.4,1648.0,6.06776]
[1744653798419,6.06665,1648.4,1648.0,6.06776]
[1744653798620,6.06688,1648.3,1648.0,6.06776]
[1744653798932,6.06728,1648.2,1647.9,17.97946]
[1744653799083,6.06688,1648.3,1648.0,6.12859177]
[1744653799285,6.06694,1648.3,1647.9,13.790286]
[1744653799597,6.06735,1648.2,1647.9,5.843]
[1744653799791,6.06679,1648.4,1648.0,6.06794]
[1744653800317,0.7639,1648.5,1648.1,0.06066927]
[1744653800517,7.26595797,1648.7,1648.1,6.83564]
[1744653800689,6.06663,1648.4,1648.1,6.83564]
[1744653800885,12.13329,1648.4,1648.1,0.7682]
[1744653801121,6.0669,1648.3,1648.1,0.7682]
[1744653801332,6.06663,1648.4,1648.1,0.7682]
[1744653801528,12.13248,1648.5,1648.1,0.7682]
[1744653801819,0.8095,1648.7,1648.1,6.8355]
[1744653801989,0.8053,1648.9,1648.5,0.7668]
[1744653802190,6.06479,1648.9,1648.6,6.06553]
[1744653802522,6.06443,1649.0,1648.7,6.06534]
[1744653802719,0.8163,1649.1,1648.6,0.06064759]
[1744653802886,6.06395,1649.1,1648.7,6.06538]
[1744653803087,6.06428,1649.0,1648.8,0.7548]
[1744653804022,6.06491,1648.9,1648.6,0.7548]
[1744653804221,6.06435,1649.0,1648.6,0.7548]
[1744653804418,6.81743,1649.1,1648.8,6.065]
[1744653804599,13.563323,1649.1,1648.7,6.06527]
[1744653804784,6.06518,1648.8,1648.6,0.7548]
[1744653804991,6.06468,1648.9,1648.6,6.8205]
[1744653805205,6.06503,1648.8,1648.6,0.7548]
[1744653805731,12.13038,1648.8,1648.6,0.7548]
[1744653805907,6.06472,1648.9,1648.6,0.7548]
[1744653806238,6.671192,1648.9,1648.6,0.7548]
[1744653806538,6.06502,1648.8,1648.6,0.7548]
[1744653806737,0.606472,1648.9,1648.4,12.71118]
[1744653806910,12.13119,1648.7,1648.4,12.71118]
[1744653807102,6.06585,1648.6,1648.4,6.6448]
[1744653807305,12.13185,1648.6,1648.4,6.6448]
[1744653807529,6.06585,1648.6,1648.4,5.844]
[1744653807931,6.06612,1648.5,1648.4,5.844]
[1744653808324,7.279317,1648.5,1648.4,5.844]
[1744653809413,6.06696,1648.3,1648.1,0.11095027]
[1744653809611,6.06722,1648.2,1648.1,0.11095027]
[1744653810642,12.13476,1648.2,1648.0,47.281]
[1744653810830,12.13464,1648.2,1648.0,47.281]
[1744653811350,6.06759,1648.1,1647.9,5.844]
[1744653811643,6.06839,1647.9,1647.6,0.7647]
[1744653811820,6.06869,1647.8,1647.7,5.844]
[1744653812145,6.06839,1647.9,1647.7,5.844]
[1744653813130,6.06797,1648.0,1647.4,6.6087]
[1744653813330,6.0692,1647.7,1647.4,12.67882]
[1744653813525,6.0692,1647.7,1647.4,18.74883]
[1744653813718,6.06876,1647.8,1647.5,6.06979]
[1744653813937,12.13773,1647.8,1647.4,18.74875]
[1744653814141,12.13773,1647.8,1647.4,12.67871]
[1744653814330,12.13854,1647.7,1647.4,0.7647]
[1744653814533,6.06965,1647.6,1647.4,0.7647]
[1744653815156,12.13938,1647.6,1647.4,0.7647]
[1744653815444,6.06965,1647.6,1647.4,0.7647]
[1744653815656,6.06907,1647.7,1647.4,6.83486]
[1744653815855,14.2273727,1647.8,1647.4,12.90492]
[1744653816026,1.2744527,1647.8,1647.5,12.13917]
[1744653816405,0.606797,1647.9,1647.5,6.0698]
[1744653816615,6.87382,1648.0,1647.6,6.06932]
[1744653816840,6.87382,1648.0,1647.7,6.06892]
[1744653817042,8.105024,1648.2,1647.8,6.12915442]
[1744653817242,14.172484,1648.2,1647.8,6.06847]
[1744653817407,6.0676,1648.1,1647.8,12.13702]
[1744653817616,8.105024,1648.2,1647.9,12.13648]
[1744653817838,14.172494,1648.2,1647.9,6.06822]
[1744653818057,6.06762,1648.1,1647.7,6.06898]
[1744653818219,6.06812,1648.0,1647.6,6.87853]
[1744653818626,6.06852,1647.9,1647.6,6.87853]
[1744653818862,6.06847,1647.9,1647.6,12.94786]
[1744653819150,6.068,1648.0,1647.7,6.06893]
[1744653819356,6.068,1648.0,1647.6,6.87851]
[1744653819653,6.068,1648.0,1647.7,6.06905]
[1744653819863,6.89175,1648.2,1647.8,6.06847]
[1744653820019,6.0677,1648.1,1647.8,6.06847]
[1744653820231,12.13549,1648.1,1647.8,6.06847]
[1744653820534,6.0677,1648.1,1647.8,6.06847]
[1744653820863,6.06807,1648.0,1647.7,6.069]
[1744653821165,6.06807,1648.0,1647.5,5.842]
[1744653821166,6.06881,1647.8,1647.5,11.91167]
[1744653821466,6.06814,1648.0,1647.7,6.06895]
[1744653821633,6.06842,1647.9,1647.6,6.06924]
[1744653821834,12.13702,1647.9,1647.6,6.06924]
[1744653822032,0.7695,1648.1,1647.7,6.89827]
[1744653822362,6.83722,1648.1,1647.8,6.06856]
[1744653822569,6.06772,1648.1,1647.8,12.13714]
[1744653822729,6.06772,1648.1,1647.7,6.89825]
[1744653823032,6.0677,1648.1,1647.8,6.06864]
[1744653823230,6.84329,1648.3,1647.7,6.89816]
[1744653823461,12.13621,1648.0,1647.7,6.89816]
[1744653823894,6.06737,1648.2,1647.8,6.06869]
[1744653824169,6.06763,1648.1,1647.8,12.13727]
[1744653824367,6.06737,1648.2,1647.9,6.06805]
[1744653824535,12.13477,1648.2,1647.9,6.06805]
[1744653824868,0.7764,1648.3,1648.0,6.0678]
[1744653825036,6.06753,1648.2,1647.8,7.365167]
[1744653825361,12.13512,1648.2,1647.8,13.433757]
[1744653825567,6.06764,1648.1,1647.8,7.365167]
[1744653825946,6.06764,1648.1,1647.8,13.433727]
[1744653826851,6.06764,1648.1,1647.8,13.433757]
[1744653827834,12.13493,1648.2,1647.9,6.06827]
[1744653830371,12.96139,1648.5,1648.0,0.7775]
[1744653830558,3.0,1648.6,1648.2,6.06717]
[1744653830758,6.06688,1648.3,1648.0,6.84534]
[1744653830960,6.06688,1648.3,1648.0,12.91318]
[1744653831474,12.13247,1648.5,1648.1,6.06753]
[1744653831652,6.06649,1648.4,1648.1,6.06753]
[1744653832051,6.06649,1648.4,1648.1,12.13501]
[1744653832349,6.06649,1648.4,1648.1,12.13496]
[1744653833049,7.579437,1648.5,1648.2,6.06719]
[1744653833249,7.579437,1648.5,1648.2,12.13429]
[1744653833568,12.13174,1648.6,1648.3,6.06681]
[1744653834173,6.06575,1648.6,1648.0,6.84528]
[1744653834367,12.13341,1648.4,1648.1,6.06759]
[1744653834879,12.88341,1648.4,1648.0,12.91313]
[1744653835082,12.88339,1648.4,1648.1,6.06755]
[1744653835376,14.171729,1648.4,1648.1,6.06755]
[1744653836576,6.06722,1648.2,1647.9,6.06815]
[1744653836884,12.13471,1648.2,1647.9,6.06815]
[1744653837374,6.06722,1648.2,1647.9,6.06815]
[1744653837580,12.13478,1648.2,1647.9,6.06815]
[1744653837946,12.13457,1648.2,1647.9,6.06815]
[1744653838147,12.13395,1648.3,1648.0,6.06785]
[1744653838377,7.4841789,1648.3,1648.0,6.06785]
[1744653838577,12.13398,1648.3,1648.0,6.06785]
[1744653838766,6.06695,1648.3,1647.9,6.06822]
[1744653839065,12.13404,1648.3,1648.0,6.06793]
[1744653839381,6.06724,1648.2,1647.9,6.06823]
[1744653839767,6.06769,1648.1,1647.8,13.958717]
[1744653839952,6.06769,1648.1,1647.8,12.66199]
[1744653840152,6.06769,1648.1,1647.8,18.73059]
[1744653840749,12.13542,1648.1,1647.8,12.66199]
[1744653840951,6.88429,1648.1,1647.8,12.66199]
[1744653841253,6.88429,1648.1,1647.8,12.66197]
[1744653841677,12.95201,1648.1,1647.8,12.66197]
[1744653841871,12.95211,1648.1,1647.8,12.66197]
[1744653842050,6.06801,1648.0,1647.8,6.5934]
[1744653842250,6.06832,1647.9,1647.8,5.842]
[1744653842648,12.13626,1648.0,1647.8,5.842]
[1744653843481,7.88543984,1648.1,1647.8,11.91067]
[1744653843693,13.95330984,1648.1,1647.8,11.91067]
[1744653843985,7.88543984,1648.1,1647.8,17.97927]
[1744653844157,0.7786,1648.4,1648.2,6.0671]
[1744653844361,6.06622,1648.5,1648.1,6.06749]
[1744653844583,6.06649,1648.4,1648.1,6.06748]
[1744653844755,12.13406,1648.3,1648.0,6.06786]
[1744653844951,1.213271,1648.4,1648.1,6.06734]
[1744653845365,6.06677,1648.4,1648.0,6.06785]
[1744653845561,0.8044,1648.3,1647.8,5.842]
[1744653845795,6.06805,1648.0,1647.8,5.842]
[1744653846455,6.06766,1648.1,1647.8,11.91069]
[1744653846655,12.13548,1648.1,1647.8,11.91069]
[1744653846988,12.13543,1648.1,1647.8,5.842]
[1744653847691,13.33247425,1648.1,1647.8,5.842]
[1744653847861,7.26464425,1648.1,1647.8,18.03993988]
[1744653848185,7.26464425,1648.1,1647.8,11.91057]
[1744653848372,6.06799,1648.0,1647.8,5.842]
[1744653848575,1.19698425,1648.1,1647.8,11.91059]
[1744653848904,6.06733,1648.2,1647.9,6.06817]
[1744653849086,6.87133,1648.3,1647.9,6.06817]
[1744653849388,6.06723,1648.2,1647.9,6.06817]
[1744653849577,12.13467,1648.2,1647.9,6.06817]
[1744653850488,6.06702,1648.3,1647.8,5.842]
[1744653850694,0.31651253,1648.7,1648.2,3.02489599]
[1744653850997,0.8297,1649.4,1649.2,6.06322]
[1744653851295,6.37889266,1649.5,1649.1,5.839]
[1744653851462,6.06317,1649.3,1649.2,0.06062609]
[1744653851658,12.12661,1649.3,1649.1,5.839]
[1744653851858,6.06354,1649.2,1649.1,5.839]
[1744653852063,6.06443,1649.0,1648.8,5.839]
[1744653852266,6.06464,1648.9,1648.8,5.839]
[1744653852658,0.7889,1649.1,1648.8,5.839]
[1744653852881,0.7955,1649.4,1648.9,6.06464]
[1744653853190,6.06333,1649.3,1648.9,6.06464]
[1744653853395,6.06333,1649.3,1648.9,6.88264]
[1744653853561,12.12674,1649.3,1648.9,6.88264]
[1744653853921,6.06357,1649.2,1648.9,6.88264]
[1744653854059,6.06401,1649.1,1648.8,11.90395]
[1744653854455,6.06446,1649.0,1648.8,5.839]
[1744653854983,6.06401,1649.1,1648.8,5.839]
[1744653855686,7.27645,1649.2,1648.8,11.90389]
[1744653855892,6.84883,1649.1,1648.8,5.839]
[1744653856080,13.640725,1649.1,1648.8,5.839]
[1744653856283,7.576475,1649.1,1648.8,5.839]
[1744653856671,6.06435,1649.0,1648.8,5.839]
[1744653856891,12.12884,1649.0,1648.8,5.839]
[1744653857078,7.4284685,1649.0,1648.8,5.839]
[1744653857895,6.06464,1648.9,1648.8,5.839]
[1744653858307,7.4284685,1649.0,1648.6,6.52737798]
[1744653858512,6.0647,1648.9,1648.6,6.06561]
[1744653858867,1.3641185,1649.0,1648.7,6.06535]
[1744653859102,1.3641185,1649.0,1648.6,6.06566]
[1744653859103,7.4286885,1649.0,1648.6,6.06566]
[1744653859299,6.87744,1648.8,1648.4,5.837]
[1744653859506,6.06612,1648.5,1648.4,5.837]
[1744653859691,6.06688,1648.3,1648.1,5.837]
[1744653861315,0.8124,1648.5,1648.1,11.90455]
[1744653861517,6.8787,1648.5,1648.1,11.90455]
[1744653861694,6.06649,1648.4,1648.1,11.90455]
[1744653861899,12.1332,1648.4,1648.1,5.837]
[1744653862095,6.06685,1648.3,1648.1,5.837]
[1744653862408,6.06649,1648.4,1648.1,5.837]
[1744653862588,12.13327,1648.4,1648.1,5.837]
[1744653862785,13.496624,1648.4,1648.1,5.837]
[1744653862996,0.8124,1648.5,1648.3,6.06685]
[1744653863194,6.86415,1648.7,1648.4,6.06615]
[1744653863907,0.74286885,1648.9,1648.5,5.837]
[1744653864090,6.06518,1648.8,1648.5,5.837]
[1744653864284,6.06469,1648.9,1648.5,11.90289]
[1744653864484,6.06506,1648.8,1648.5,5.837]
[1744653865483,6.06506,1648.8,1648.5,11.90312]
[1744653865688,6.06506,1648.8,1648.5,11.90299]
[1744653865885,6.86273,1649.1,1648.5,7.63393]
[1744653866085,6.06431,1649.0,1648.6,0.7577]
[1744653866286,6.86265,1649.1,1648.6,0.81834975]
[1744653866507,12.12738,1649.2,1648.9,6.06461]
[1744653866684,6.93869,1649.3,1648.9,6.06461]
[1744653866685,6.86211,1649.3,1648.9,6.06461]
[1744653866890,0.7987,1649.3,1649.0,6.85419]
[1744653867087,6.06371,1649.2,1649.0,0.79]
[1744653867283,6.06331,1649.3,1649.0,0.79]
[1744653867478,13.339292,1649.3,1649.0,0.79]
[1744653868017,6.0637,1649.2,1649.0,0.79]
[1744653868217,12.12743,1649.2,1648.9,11.90149]
[1744653868513,6.0637,1649.2,1648.9,11.90145]
[1744653869393,7.275842,1649.3,1649.0,6.06425]
[1744653869697,7.275842,1649.3,1648.9,11.90145]
[1744653869698,13.339262,1649.3,1648.9,11.90145]
[1744653869902,6.06366,1649.2,1648.9,11.90145]
[1744653870084,12.12747,1649.2,1648.9,11.90145]
[1744653870284,7.3976682,1649.2,1648.9,11.90145]
[1744653870493,1.3340082,1649.2,1648.9,12.34626855]
[1744653870687,6.06374,1649.2,1648.9,12.34626855]
[1744653870887,6.06317,1649.3,1648.9,5.837]
[1744653871086,6.06428,1649.0,1648.9,5.837]
[1744653871612,6.06538,1648.7,1648.6,5.836]
[1744653871781,6.87284,1648.8,1648.6,5.836]
[1744653871982,6.06538,1648.7,1648.6,5.836]
[1744653874416,1.494884,1648.8,1648.6,5.836]
[1744653874589,12.93806,1648.8,1648.6,5.836]
[1744653875119,6.06538,1648.7,1648.6,5.836]
[1744653876923,6.06628,1648.5,1648.3,5.832]
[1744653877299,6.06576,1648.6,1648.3,11.89882]
[1744653877703,6.06633,1648.5,1648.3,5.832]
[1744653877899,12.13177,1648.6,1648.3,11.89884]
[1744653878100,6.87272,1648.8,1648.3,8.16266967]
[1744653878424,6.06512,1648.8,1648.5,6.83148]
[1744653878630,6.06478,1648.9,1648.6,6.06572]
[1744653878811,12.12957,1648.9,1648.6,6.06572]
[1744653879123,0.7853,1649.2,1648.7,11.89735]
[1744653879423,6.06394,1649.1,1648.8,6.06485]
[1744653879795,1.47016,1649.2,1649.0,6.06424]
[1744653880013,6.74843,1649.2,1648.9,12.1291]
[1744653880205,6.06321,1649.3,1648.9,6.06464]
[1744653880407,6.06377,1649.2,1648.9,6.06464]
[1744653880601,0.7766,1649.4,1648.9,6.06464]
[1744653880602,12.12672,1649.3,1649.0,6.06425]
[1744653880803,12.12672,1649.3,1648.9,12.12928]
[1744653881008,6.06328,1649.3,1648.8,0.7948]
[1744653881227,6.06328,1649.3,1649.0,6.06412]
[1744653881525,6.06328,1649.3,1649.0,12.12827]
[1744653881727,6.06328,1649.3,1649.0,6.06412]
[1744653882331,12.12663,1649.3,1648.9,12.1291]
[1744653882634,6.06365,1649.2,1648.8,8.128664]
[1744653882805,12.12739,1649.2,1648.9,6.06464]
[1744653883001,7.353563,1649.3,1648.9,12.12913]
[1744653883194,7.353563,1649.3,1648.9,12.1292]
[1744653883501,7.353563,1649.3,1649.0,6.06426]
[1744653883699,13.416993,1649.3,1648.9,12.1292]
[1744653883896,13.416893,1649.3,1649.0,6.06421]
[1744653884096,13.416893,1649.3,1648.9,12.1291]
[1744653884296,7.353563,1649.3,1649.0,6.06428]
[1744653884730,13.416913,1649.3,1649.0,6.06428]
[1744653885233,0.7766,1649.4,1648.9,0.45984066]
[1744653885404,6.06275,1649.5,1649.1,11.89471]
[1744653885731,15.51830099,1649.7,1649.2,6.06354]
[1744653885909,6.06272,1649.5,1649.1,6.6169]
[1744653886105,0.8039,1649.6,1649.1,6.6775357]
[1744653886316,6.06244,1649.5,1649.2,6.0633]
[1744653886997,6.06295,1649.4,1649.1,12.68073]
[1744653887198,12.12595,1649.4,1649.1,6.6169]
[1744653887528,7.8920921,1649.6,1649.1,6.6169]
[1744653887742,7.8920921,1649.6,1649.3,6.06303]
[1744653887899,0.78920921,1649.5,1649.3,6.06312]
[1744653888223,0.78920921,1649.5,1649.2,6.06354]
[1744653888424,6.85174921,1649.5,1649.2,6.06354]
[1744653888630,0.78920921,1649.5,1649.2,6.06328]
[1744653889031,6.85165921,1649.5,1649.2,6.06328]
[1744653889730,0.78920921,1649.5,1649.3,6.06283]
[1744653889900,6.06247,1649.5,1649.2,6.06346]
[1744653890102,6.06247,1649.5,1649.2,6.06342]
[1744653890717,7.8921621,1649.6,1649.3,6.06312]
[1744653890913,7.8921621,1649.6,1649.3,12.12618]
[1744653891125,6.06247,1649.5,1649.2,6.06347]
[1744653891308,6.85168621,1649.5,1649.2,12.12691]
[1744653891940,0.78921621,1649.5,1649.2,12.12691]
[1744653892138,6.06209,1649.6,1649.3,6.82805]
[1744653893140,6.06209,1649.6,1649.3,6.82803]
[1744653893335,12.12434,1649.6,1649.3,6.82803]
[1744653893648,3.0,1649.8,1649.1,5.831]
[1744653893649,9.93019,1649.7,1649.1,0.7708]
[1744653893944,6.06291,1649.4,1649.1,6.06381]
[1744653894252,6.06327,1649.3,1649.0,6.06415]
[1744653894607,6.06327,1649.3,1649.0,12.12831]
[1744653896430,6.85243,1649.6,1649.1,0.06063748]
[1744653896630,6.85243,1649.6,1649.1,6.06374]
[1744653896631,0.7902,1649.6,1649.1,6.06374]
[1744653896938,6.06303,1649.4,1649.1,6.06385]
[1744653897140,12.12518,1649.5,1649.2,5.83]
[1744653897340,6.06286,1649.4,1649.2,5.83]
[1744653897708,6.06317,1649.3,1649.2,5.83]
[1744653898110,6.83337,1649.3,1649.2,5.83]
[1744653898428,12.12747,1649.2,1648.9,5.83]
[1744653898633,6.06404,1649.1,1648.9,5.83]
[1744653899643,6.06566,1648.7,1648.5,6.5831]
[1744653899845,6.06575,1648.6,1648.5,5.83]
[1744653900012,6.06566,1648.7,1648.5,5.83]
[1744653900208,0.8008,1649.2,1648.7,6.0651]
[1744653900516,0.8008,1649.5,1649.4,6.06281]
[1744653900716,0.8008,1649.7,1649.2,5.83]
[1744653900917,0.8008,1649.7,1649.4,6.06277]
[1744653900918,6.86259,1649.7,1649.4,6.06277]
[1744653901114,0.8008,1649.7,1649.3,6.063]
[1744653901411,6.06183,1649.7,1649.3,8.06106286]
[1744653901619,6.06183,1649.7,1649.3,8.06102286]
[1744653901817,6.0622,1649.6,1649.3,8.06101286]
[1744653902049,6.0617,1649.7,1649.2,5.83]
[1744653902247,6.06287,1649.4,1649.2,5.83]
[1744653902550,6.06317,1649.3,1649.2,5.83]
[1744653902714,6.06404,1649.1,1648.9,53.094]
[1744653903136,6.0636,1649.2,1648.9,53.094]
[1744653903541,0.7704,1649.3,1648.9,59.009887]
[1744653903711,6.83368,1649.3,1649.0,6.06407]
[1744653904040,6.06328,1649.3,1649.0,6.82747]
[1744653904237,6.87083,1649.5,1649.1,6.06378]
[1744653904459,6.87083,1649.5,1649.0,0.7634]
[1744653904460,0.8083,1649.7,1649.2,0.06063161]
[1744653904659,12.1245,1649.6,1649.2,12.12697]
[1744653904865,12.1245,1649.6,1649.3,5.83]
[1744653905346,6.06175,1649.7,1649.4,6.12324866]
[1744653905515,6.06241,1649.6,1649.3,6.6219]
[1744653905713,12.12513,1649.5,1649.3,6.6219]
[1744653905945,6.06254,1649.5,1649.3,6.6219]
[1744653906147,6.06254,1649.5,1649.3,5.83]
[1744653906341,6.06329,1649.3,1649.1,6.6209]
[1744653906747,6.06354,1649.2,1649.1,5.83]
[1744653911483,6.06428,1649.0,1648.9,47.264]
[1744653911758,6.06488,1648.9,1648.7,0.7909]
[1744653911940,6.06488,1648.9,1648.5,16.50586]
[1744653912139,6.06488,1648.9,1648.6,6.06571]
[1744653912335,12.12972,1648.9,1648.6,6.06571]
[1744653912981,6.06595,1648.6,1648.4,5.826]
[1744653913380,12.13187,1648.6,1648.4,5.826]
[1744653913549,6.06612,1648.5,1648.4,5.826]
[1744653914063,6.06612,1648.5,1648.1,0.8141]